[Event "Late-Titled-Tuesday-Blitz-April-30-2024"]
[Site "Chess.com"]
[Date "2024.04.30"]
[Round "5"]
[White "Andrii_Prydun"]
[Black "VirtualCoach"]
[Result "1-0"]
[WhiteElo "2366"]
[BlackElo "2065"]
[TimeControl "180+1"]
[EndTime "14:57:19 PDT"]
[Termination "Andrii_Prydun won on time"]

1. e4 {[%clk 0:03:00.9]} 1... c6 {[%clk 0:02:59.9]} 2. d4 {[%clk 0:02:59.4]}
2... d5 {[%clk 0:03:00.1]} 3. e5 {[%clk 0:03:00.3]} 3... Bf5 {[%clk 0:02:59.3]}
4. Bd3 {[%clk 0:03:00.3]} 4... Bxd3 {[%clk 0:02:58.8]} 5. cxd3 {[%clk
0:03:01.2]} 5... e6 {[%clk 0:02:59.3]} 6. Nc3 {[%clk 0:03:01.5]} 6... Nd7 {[%clk
0:02:57.9]} 7. Nf3 {[%clk 0:02:51.1]} 7... c5 {[%clk 0:02:57.4]} 8. dxc5 {[%clk
0:02:46.6]} 8... Bxc5 {[%clk 0:02:54.9]} 9. d4 {[%clk 0:02:39.9]} 9... Bb4
{[%clk 0:02:54.7]} 10. O-O {[%clk 0:02:33.2]} 10... Rc8 {[%clk 0:02:53.8]} 11.
Ne2 {[%clk 0:02:29.3]} 11... Ne7 {[%clk 0:02:51]} 12. g3 {[%clk 0:02:07.5]}
12... O-O {[%clk 0:02:44.7]} 13. Qd3 {[%clk 0:01:49.6]} 13... Nf5 {[%clk
0:02:43.5]} 14. h4 {[%clk 0:01:42.7]} 14... Be7 {[%clk 0:02:42.4]} 15. Kg2
{[%clk 0:01:37.1]} 15... Nb6 {[%clk 0:02:41.5]} 16. b3 {[%clk 0:01:35.8]} 16...
Qc7 {[%clk 0:02:38.6]} 17. Ne1 {[%clk 0:01:31.7]} 17... f6 {[%clk 0:02:09.8]}
18. Bf4 {[%clk 0:01:29.8]} 18... Qd7 {[%clk 0:02:01.8]} 19. Nf3 {[%clk
0:01:25.2]} 19... Na8 {[%clk 0:01:49]} 20. Rh1 {[%clk 0:01:18.5]} 20... Qd8
{[%clk 0:01:37.3]} 21. g4 {[%clk 0:01:12.8]} 21... fxe5 {[%clk 0:01:37.1]} 22.
dxe5 {[%clk 0:01:11.7]} 22... Nxh4+ {[%clk 0:01:35.2]} 23. Nxh4 {[%clk
0:01:09.1]} 23... Bxh4 {[%clk 0:01:36.1]} 24. Bg3 {[%clk 0:01:07.7]} 24... g5
{[%clk 0:01:19.3]} 25. Nd4 {[%clk 0:01:01.2]} 25... Qe7 {[%clk 0:01:14.5]} 26.
Bxh4 {[%clk 0:00:47.9]} 26... gxh4 {[%clk 0:01:14.3]} 27. Qe3 {[%clk 0:00:47.4]}
27... Rf7 {[%clk 0:01:04.8]} 28. Qh6 {[%clk 0:00:41.6]} 28... Rg7 {[%clk
0:01:01]} 29. Rxh4 {[%clk 0:00:37.8]} 29... Rg6 {[%clk 0:00:59.1]} 30. Qf4
{[%clk 0:00:32.7]} 30... Rf8 {[%clk 0:00:57.6]} 31. Qg3 {[%clk 0:00:28.8]} 31...
Nc7 {[%clk 0:00:40]} 32. Rah1 {[%clk 0:00:27]} 32... Rf7 {[%clk 0:00:38.6]} 33.
f4 {[%clk 0:00:17.4]} 33... Qb4 {[%clk 0:00:31.4]} 34. Rd1 {[%clk 0:00:15.4]}
34... Qe7 {[%clk 0:00:20.1]} 35. Kh3 {[%clk 0:00:14.9]} 35... Rfg7 {[%clk
0:00:19.9]} 36. Qf3 {[%clk 0:00:13.9]} 36... Qf7 {[%clk 0:00:16]} 37. f5 {[%clk
0:00:12.6]} 37... Rg5 {[%clk 0:00:13.8]} 38. Rf1 {[%clk 0:00:07.3]} 38... exf5
{[%clk 0:00:13.3]} 39. Nxf5 {[%clk 0:00:05.3]} 39... Ne8 {[%clk 0:00:04]} 40.
Nh6+ {[%clk 0:00:05.1]} 1-0

[Event "Late-Titled-Tuesday-Blitz-April-30-2024"]
[Site "Chess.com"]
[Date "2024.04.30"]
[Round "5"]
[White "flubs"]
[Black "grandmastergauri"]
[Result "0-1"]
[WhiteElo "2506"]
[BlackElo "2730"]
[TimeControl "180+1"]
[EndTime "14:57:20 PDT"]
[Termination "grandmastergauri won on time"]

1. Nf3 {[%clk 0:02:54.9]} 1... Nf6 {[%clk 0:02:59.9]} 2. c4 {[%clk 0:02:54.2]}
2... b6 {[%clk 0:02:59.1]} 3. Nc3 {[%clk 0:02:51.9]} 3... Bb7 {[%clk 0:02:59.5]}
4. d3 {[%clk 0:02:48.3]} 4... g6 {[%clk 0:02:57.4]} 5. g3 {[%clk 0:02:46.1]}
5... Bg7 {[%clk 0:02:57.8]} 6. Bg2 {[%clk 0:02:46.1]} 6... O-O {[%clk
0:02:57.4]} 7. O-O {[%clk 0:02:45.8]} 7... c5 {[%clk 0:02:57.4]} 8. e4 {[%clk
0:02:45.8]} 8... d6 {[%clk 0:02:57.4]} 9. Re1 {[%clk 0:02:46]} 9... Nc6 {[%clk
0:02:50.4]} 10. Bg5 {[%clk 0:02:45.2]} 10... h6 {[%clk 0:02:45.7]} 11. Bxf6
{[%clk 0:02:44.4]} 11... Bxf6 {[%clk 0:02:46.3]} 12. Qd2 {[%clk 0:02:41.4]}
12... Bg7 {[%clk 0:02:46.1]} 13. Rac1 {[%clk 0:02:29]} 13... a6 {[%clk
0:02:42.6]} 14. Ne2 {[%clk 0:02:16.4]} 14... b5 {[%clk 0:01:58.8]} 15. b3 {[%clk
0:02:09.7]} 15... Qa5 {[%clk 0:01:51.3]} 16. Qxa5 {[%clk 0:01:54.4]} 16... Nxa5
{[%clk 0:01:50.5]} 17. Nc3 {[%clk 0:01:53.8]} 17... Nc6 {[%clk 0:01:39.4]} 18.
Nd5 {[%clk 0:01:44.1]} 18... e6 {[%clk 0:01:30.4]} 19. Nc3 {[%clk 0:01:23.1]}
19... Rfd8 {[%clk 0:01:27.8]} 20. Red1 {[%clk 0:01:13.9]} 20... b4 {[%clk
0:00:55.5]} 21. Ne2 {[%clk 0:01:11.7]} 21... e5 {[%clk 0:00:54.4]} 22. Ne1
{[%clk 0:00:57.2]} 22... a5 {[%clk 0:00:53.7]} 23. Rb1 {[%clk 0:00:47.1]} 23...
a4 {[%clk 0:00:46.9]} 24. Nc2 {[%clk 0:00:46.1]} 24... axb3 {[%clk 0:00:40.7]}
25. axb3 {[%clk 0:00:47]} 25... Ra2 {[%clk 0:00:40.4]} 26. Rd2 {[%clk
0:00:34.2]} 26... h5 {[%clk 0:00:31.8]} 27. Nc1 {[%clk 0:00:24.9]} 27... Bh6
{[%clk 0:00:20.1]} 28. Re2 {[%clk 0:00:21.6]} 28... Ra7 {[%clk 0:00:16.1]} 29.
Bh3 {[%clk 0:00:19.9]} 29... Rda8 {[%clk 0:00:16]} 30. Kf1 {[%clk 0:00:16.9]}
30... Kg7 {[%clk 0:00:15.5]} 31. Ke1 {[%clk 0:00:16.8]} 31... Bg5 {[%clk
0:00:12.8]} 32. Kd1 {[%clk 0:00:16.5]} 32... h4 {[%clk 0:00:13.4]} 33. Bd7
{[%clk 0:00:13.9]} 33... hxg3 {[%clk 0:00:12.9]} 34. fxg3 {[%clk 0:00:12.4]}
34... Rd8 {[%clk 0:00:11.9]} 35. Bg4 {[%clk 0:00:08.3]} 35... Rf8 {[%clk
0:00:11.6]} 36. h4 {[%clk 0:00:07.4]} 36... Bh6 {[%clk 0:00:11.5]} 37. Rf2
{[%clk 0:00:06.5]} 37... Ne7 {[%clk 0:00:10.7]} 38. Ra1 {[%clk 0:00:03.8]} 38...
Rxa1 {[%clk 0:00:10.2]} 39. Nxa1 {[%clk 0:00:04.7]} 39... f5 {[%clk 0:00:10.8]}
40. exf5 {[%clk 0:00:02.1]} 40... gxf5 {[%clk 0:00:11.7]} 41. Be2 {[%clk
0:00:02.1]} 41... Be3 {[%clk 0:00:08.2]} 42. Rh2 {[%clk 0:00:01.5]} 42... f4
{[%clk 0:00:07.4]} 43. Nc2 {[%clk 0:00:00.4]} 43... fxg3 {[%clk 0:00:06.7]} 44.
Rh3 {[%clk 0:00:01.2]} 44... Bf4 {[%clk 0:00:06.1]} 0-1

[Event "Late-Titled-Tuesday-Blitz-April-30-2024"]
[Site "Chess.com"]
[Date "2024.04.30"]
[Round "5"]
[White "Bykov_Egor"]
[Black "bobo_panda"]
[Result "1-0"]
[WhiteElo "2606"]
[BlackElo "2423"]
[TimeControl "180+1"]
[EndTime "14:57:27 PDT"]
[Termination "Bykov_Egor won by checkmate"]

1. e4 {[%clk 0:01:49]} 1... c5 {[%clk 0:02:57.5]} 2. Nf3 {[%clk 0:01:48.1]} 2...
d6 {[%clk 0:02:57.8]} 3. d4 {[%clk 0:01:47.7]} 3... cxd4 {[%clk 0:02:58.7]} 4.
Nxd4 {[%clk 0:01:48]} 4... Nf6 {[%clk 0:02:59.6]} 5. Nc3 {[%clk 0:01:48.2]} 5...
a6 {[%clk 0:03:00.1]} 6. Bg5 {[%clk 0:01:47.2]} 6... e6 {[%clk 0:03:00.1]} 7. f4
{[%clk 0:01:47.2]} 7... Be7 {[%clk 0:03:00.6]} 8. Qf3 {[%clk 0:01:47.2]} 8...
Qc7 {[%clk 0:03:01.2]} 9. O-O-O {[%clk 0:01:45.9]} 9... Nbd7 {[%clk 0:03:01.7]}
10. g4 {[%clk 0:01:44.8]} 10... h6 {[%clk 0:03:01.9]} 11. Bxf6 {[%clk
0:01:43.9]} 11... Bxf6 {[%clk 0:03:02.8]} 12. h4 {[%clk 0:01:32.9]} 12... Nb6
{[%clk 0:03:03.2]} 13. Bh3 {[%clk 0:01:07.2]} 13... Bd7 {[%clk 0:02:55.5]} 14.
g5 {[%clk 0:01:06.6]} 14... Be7 {[%clk 0:02:31.8]} 15. g6 {[%clk 0:00:58.3]}
15... f5 {[%clk 0:01:37.6]} 16. exf5 {[%clk 0:00:53.1]} 16... exf5 {[%clk
0:01:37.8]} 17. Rhe1 {[%clk 0:00:46.3]} 17... Bc6 {[%clk 0:01:15.2]} 18. Qe2
{[%clk 0:00:40.5]} 18... Be4 {[%clk 0:01:08.6]} 19. Bxf5 {[%clk 0:00:37.7]}
19... d5 {[%clk 0:01:03.2]} 20. Bxe4 {[%clk 0:00:35.5]} 20... Qxf4+ {[%clk
0:01:02.9]} 21. Kb1 {[%clk 0:00:31.2]} 21... dxe4 {[%clk 0:01:03]} 22. Ne6
{[%clk 0:00:28.4]} 22... Qe5 {[%clk 0:00:58.7]} 23. Qxe4 {[%clk 0:00:23.5]}
23... Qxe4 {[%clk 0:00:46.3]} 24. Rxe4 {[%clk 0:00:24.4]} 24... Rc8 {[%clk
0:00:42.1]} 25. Nxg7+ {[%clk 0:00:23.7]} 25... Kf8 {[%clk 0:00:42.4]} 26. Ne6+
{[%clk 0:00:19.4]} 26... Kg8 {[%clk 0:00:42.4]} 27. h5 {[%clk 0:00:15.7]} 27...
Bf6 {[%clk 0:00:42.6]} 28. Nd5 {[%clk 0:00:15]} 28... Nxd5 {[%clk 0:00:41.3]}
29. Rxd5 {[%clk 0:00:15.9]} 29... Re8 {[%clk 0:00:41.2]} 30. c4 {[%clk 0:00:15]}
30... Bg7 {[%clk 0:00:34.4]} 31. Kc2 {[%clk 0:00:15]} 31... Bf6 {[%clk 0:00:34]}
32. b3 {[%clk 0:00:14.4]} 32... Bg7 {[%clk 0:00:32.3]} 33. Kd3 {[%clk
0:00:14.7]} 33... Bf6 {[%clk 0:00:32.4]} 34. a4 {[%clk 0:00:15.3]} 34... Bg7
{[%clk 0:00:32.2]} 35. Rd7 {[%clk 0:00:15.9]} 35... Bf6 {[%clk 0:00:31.3]} 36.
c5 {[%clk 0:00:16.5]} 36... Ba1 {[%clk 0:00:27.9]} 37. Kc4 {[%clk 0:00:16.7]}
37... Rb8 {[%clk 0:00:23.5]} 38. b4 {[%clk 0:00:16.8]} 38... b5+ {[%clk
0:00:23]} 39. cxb6 {[%clk 0:00:14.9]} 39... Bf6 {[%clk 0:00:22.9]} 40. b5 {[%clk
0:00:14.4]} 40... Rxb6 {[%clk 0:00:20.8]} 41. Nc5 {[%clk 0:00:08.8]} 41... axb5+
{[%clk 0:00:20.6]} 42. axb5 {[%clk 0:00:08.6]} 42... Rb8 {[%clk 0:00:20.4]} 43.
b6 {[%clk 0:00:08]} 43... Bg7 {[%clk 0:00:18.6]} 44. b7 {[%clk 0:00:08.1]} 44...
Bf6 {[%clk 0:00:16]} 45. Re6 {[%clk 0:00:08]} 45... Bg7 {[%clk 0:00:15.9]} 46.
Ree7 {[%clk 0:00:08.2]} 46... Bf6 {[%clk 0:00:16.1]} 47. Rf7 {[%clk 0:00:08.6]}
47... Ba1 {[%clk 0:00:16.5]} 48. Ne6 {[%clk 0:00:08.8]} 48... Bb2 {[%clk
0:00:15.1]} 49. Rg7+ {[%clk 0:00:08.7]} 49... Bxg7 {[%clk 0:00:15.6]} 50. Rxg7#
{[%clk 0:00:09.3]} 1-0

[Event "Late-Titled-Tuesday-Blitz-April-30-2024"]
[Site "Chess.com"]
[Date "2024.04.30"]
[Round "5"]
[White "Rytenko_V"]
[Black "Abund"]
[Result "0-1"]
[WhiteElo "2492"]
[BlackElo "2774"]
[TimeControl "180+1"]
[EndTime "14:57:28 PDT"]
[Termination "Abund won by resignation"]

1. d4 {[%clk 0:03:00.9]} 1... d5 {[%clk 0:02:59.8]} 2. Nf3 {[%clk 0:03:00.7]}
2... Nf6 {[%clk 0:03:00.1]} 3. c4 {[%clk 0:03:01.1]} 3... e6 {[%clk 0:03:00.7]}
4. g3 {[%clk 0:02:58.1]} 4... dxc4 {[%clk 0:02:55.7]} 5. Bg2 {[%clk 0:02:57.1]}
5... Bb4+ {[%clk 0:02:48.9]} 6. Bd2 {[%clk 0:02:55]} 6... a5 {[%clk 0:02:47.9]}
7. O-O {[%clk 0:02:50]} 7... Nc6 {[%clk 0:02:42.5]} 8. e3 {[%clk 0:02:35.2]}
8... Nd5 {[%clk 0:02:30.1]} 9. Na3 {[%clk 0:02:28.9]} 9... c3 {[%clk 0:02:24.7]}
10. bxc3 {[%clk 0:02:13.3]} 10... Bxa3 {[%clk 0:02:17.7]} 11. Ne5 {[%clk
0:02:07.2]} 11... Nxe5 {[%clk 0:02:10.6]} 12. Qa4+ {[%clk 0:02:06.8]} 12... Bd7
{[%clk 0:02:07.7]} 13. Qxa3 {[%clk 0:02:04]} 13... Nc4 {[%clk 0:02:07.7]} 14.
Qc1 {[%clk 0:02:04.1]} 14... Bc6 {[%clk 0:02:02.5]} 15. e4 {[%clk 0:02:00.6]}
15... Nf6 {[%clk 0:01:50.8]} 16. Re1 {[%clk 0:01:47.1]} 16... Nxd2 {[%clk
0:01:47.2]} 17. Qxd2 {[%clk 0:01:48]} 17... O-O {[%clk 0:01:36.7]} 18. c4 {[%clk
0:01:48.1]} 18... e5 {[%clk 0:01:29.1]} 19. d5 {[%clk 0:01:45.4]} 19... Bd7
{[%clk 0:01:06.6]} 20. Qb2 {[%clk 0:01:43.6]} 20... Qe7 {[%clk 0:01:05.9]} 21.
Qxb7 {[%clk 0:01:42.1]} 21... Qc5 {[%clk 0:01:06.2]} 22. Qb2 {[%clk 0:01:32.8]}
22... Rfe8 {[%clk 0:00:59.8]} 23. Rab1 {[%clk 0:01:27]} 23... h6 {[%clk
0:00:57.5]} 24. Qc3 {[%clk 0:01:24.5]} 24... Re7 {[%clk 0:00:44.3]} 25. h3
{[%clk 0:01:23.1]} 25... Ne8 {[%clk 0:00:44.5]} 26. Re2 {[%clk 0:01:20.2]} 26...
Nd6 {[%clk 0:00:44.9]} 27. Rc2 {[%clk 0:01:07.8]} 27... Ree8 {[%clk 0:00:43.7]}
28. Kh2 {[%clk 0:01:07]} 28... f6 {[%clk 0:00:44]} 29. f4 {[%clk 0:01:04.9]}
29... exf4 {[%clk 0:00:43]} 30. gxf4 {[%clk 0:00:56.3]} 30... Nxe4 {[%clk
0:00:43.4]} 31. Qf3 {[%clk 0:00:36.9]} 31... Nd6 {[%clk 0:00:41.1]} 32. Rg1
{[%clk 0:00:31.1]} 32... Bf5 {[%clk 0:00:35.1]} 33. Rb2 {[%clk 0:00:27]} 33...
Re7 {[%clk 0:00:26.6]} 34. Qc3 {[%clk 0:00:27]} 34... Rae8 {[%clk 0:00:24.4]}
35. Bf3 {[%clk 0:00:26.1]} 35... Kh7 {[%clk 0:00:20]} 36. Rbg2 {[%clk 0:00:24]}
36... Qxc4 {[%clk 0:00:19]} 37. Qxa5 {[%clk 0:00:18.6]} 37... Qxf4+ {[%clk
0:00:18.8]} 38. Rg3 {[%clk 0:00:19.2]} 38... Ne4 {[%clk 0:00:11.4]} 39. Bxe4
{[%clk 0:00:18.3]} 39... Rxe4 {[%clk 0:00:11.8]} 40. Kh1 {[%clk 0:00:13.1]}
40... g5 {[%clk 0:00:12]} 41. d6 {[%clk 0:00:09.3]} 41... Re2 {[%clk 0:00:09.7]}
42. Qxc7+ {[%clk 0:00:08.9]} 42... Kg6 {[%clk 0:00:10.2]} 43. d7 {[%clk
0:00:05.4]} 43... Qxc7 {[%clk 0:00:07.4]} 44. dxe8=Q+ {[%clk 0:00:05.5]} 44...
Rxe8 {[%clk 0:00:08.1]} 0-1

[Event "Late-Titled-Tuesday-Blitz-April-30-2024"]
[Site "Chess.com"]
[Date "2024.04.30"]
[Round "5"]
[White "albi1999"]
[Black "MyDream003"]
[Result "0-1"]
[WhiteElo "2649"]
[BlackElo "2835"]
[TimeControl "180+1"]
[EndTime "14:57:29 PDT"]
[Termination "MyDream003 won by resignation"]

1. d4 {[%clk 0:02:51.3]} 1... Nf6 {[%clk 0:02:59.3]} 2. c4 {[%clk 0:02:41.5]}
2... c5 {[%clk 0:02:58.6]} 3. d5 {[%clk 0:02:41.2]} 3... e6 {[%clk 0:02:58.7]}
4. Nc3 {[%clk 0:02:40.6]} 4... exd5 {[%clk 0:02:56.3]} 5. cxd5 {[%clk
0:02:41.5]} 5... d6 {[%clk 0:02:56.6]} 6. e4 {[%clk 0:02:39.3]} 6... g6 {[%clk
0:02:56.7]} 7. f4 {[%clk 0:02:40]} 7... Bg7 {[%clk 0:02:56.1]} 8. e5 {[%clk
0:02:40.5]} 8... Nfd7 {[%clk 0:02:12.3]} 9. e6 {[%clk 0:02:39.8]} 9... fxe6
{[%clk 0:02:12.7]} 10. dxe6 {[%clk 0:02:39.1]} 10... Nf6 {[%clk 0:02:12.9]} 11.
Bb5+ {[%clk 0:02:37.1]} 11... Nc6 {[%clk 0:02:12.6]} 12. Nf3 {[%clk 0:02:26.1]}
12... O-O {[%clk 0:02:11.7]} 13. Bc4 {[%clk 0:02:15.4]} 13... Ne7 {[%clk
0:02:08.1]} 14. Nd5 {[%clk 0:01:59.5]} 14... Bxe6 {[%clk 0:02:03.1]} 15. Nxf6+
{[%clk 0:01:52.2]} 15... Rxf6 {[%clk 0:02:04]} 16. Be2 {[%clk 0:01:41.8]} 16...
Rf8 {[%clk 0:01:39.9]} 17. Ng5 {[%clk 0:01:37.8]} 17... Bd5 {[%clk 0:01:35.5]}
18. Bf3 {[%clk 0:01:34]} 18... Bxf3 {[%clk 0:01:23.7]} 19. Qxf3 {[%clk
0:01:34.9]} 19... Qd7 {[%clk 0:01:23.8]} 20. O-O {[%clk 0:01:34.6]} 20... d5
{[%clk 0:01:22]} 21. Re1 {[%clk 0:01:32.8]} 21... Nf5 {[%clk 0:01:18.9]} 22. Qh3
{[%clk 0:01:24]} 22... Bd4+ {[%clk 0:01:15.3]} 23. Kh1 {[%clk 0:01:22.3]} 23...
Rae8 {[%clk 0:01:12.7]} 24. Rd1 {[%clk 0:01:13.2]} 24... Re2 {[%clk 0:01:04.1]}
25. Nf3 {[%clk 0:01:08]} 25... Bf6 {[%clk 0:00:59.3]} 26. Bd2 {[%clk 0:01:03.2]}
26... Rfe8 {[%clk 0:00:56.3]} 27. Rab1 {[%clk 0:00:53.8]} 27... Qe6 {[%clk
0:00:50]} 28. b3 {[%clk 0:00:49.7]} 28... Nd4 {[%clk 0:00:49.6]} 29. Qxe6+
{[%clk 0:00:48.1]} 29... R8xe6 {[%clk 0:00:46.5]} 30. Ng1 {[%clk 0:00:18.8]}
30... R2e4 {[%clk 0:00:37.8]} 31. g3 {[%clk 0:00:18.8]} 31... Nf5 {[%clk
0:00:26.9]} 32. Rbc1 {[%clk 0:00:18.2]} 32... b6 {[%clk 0:00:26.9]} 33. Rc2
{[%clk 0:00:18]} 33... h5 {[%clk 0:00:23.6]} 34. Bc1 {[%clk 0:00:18]} 34... d4
{[%clk 0:00:17]} 35. Bd2 {[%clk 0:00:17.8]} 35... Kf7 {[%clk 0:00:16.3]} 36. b4
{[%clk 0:00:17.8]} 36... d3 {[%clk 0:00:15.9]} 37. Rcc1 {[%clk 0:00:15.2]} 37...
c4 {[%clk 0:00:16.1]} 38. a4 {[%clk 0:00:14.2]} 38... Bb2 {[%clk 0:00:12.3]} 39.
Rb1 {[%clk 0:00:12.8]} 39... c3 {[%clk 0:00:10.6]} 40. Rf1 {[%clk 0:00:12.7]}
40... cxd2 {[%clk 0:00:09]} 41. Rxb2 {[%clk 0:00:12.6]} 41... Re1 {[%clk
0:00:09.2]} 42. Rb1 {[%clk 0:00:10.4]} 42... Rxf1 {[%clk 0:00:08.6]} 43. Rxf1
{[%clk 0:00:09.9]} 43... Re1 {[%clk 0:00:09.4]} 0-1

[Event "Late-Titled-Tuesday-Blitz-April-30-2024"]
[Site "Chess.com"]
[Date "2024.04.30"]
[Round "5"]
[White "vladgoncharov"]
[Black "H3nriqueTV"]
[Result "1-0"]
[WhiteElo "2605"]
[BlackElo "2426"]
[TimeControl "180+1"]
[EndTime "14:57:30 PDT"]
[Termination "vladgoncharov won by resignation"]

1. d4 {[%clk 0:03:00.9]} 1... Nf6 {[%clk 0:02:58.4]} 2. c4 {[%clk 0:02:56.6]}
2... g6 {[%clk 0:02:58.5]} 3. Nc3 {[%clk 0:02:56.8]} 3... d5 {[%clk 0:02:58.9]}
4. Nf3 {[%clk 0:02:50.3]} 4... Bg7 {[%clk 0:02:57]} 5. Bf4 {[%clk 0:02:50.9]}
5... Kf8 {[%clk 0:02:56.7]} 6. e3 {[%clk 0:02:50.5]} 6... c6 {[%clk 0:02:53.9]}
7. cxd5 {[%clk 0:02:45.6]} 7... cxd5 {[%clk 0:02:53.4]} 8. Rc1 {[%clk
0:02:44.6]} 8... a6 {[%clk 0:02:52.9]} 9. Be2 {[%clk 0:02:37]} 9... Nc6 {[%clk
0:02:53.2]} 10. O-O {[%clk 0:02:36.1]} 10... Bg4 {[%clk 0:02:47.7]} 11. Na4
{[%clk 0:02:35.5]} 11... Ne4 {[%clk 0:02:37.4]} 12. h3 {[%clk 0:02:20.5]} 12...
Bf5 {[%clk 0:02:35.2]} 13. a3 {[%clk 0:02:15.7]} 13... Bf6 {[%clk 0:02:28.1]}
14. b4 {[%clk 0:02:14.1]} 14... Kg7 {[%clk 0:02:26.9]} 15. g4 {[%clk 0:02:10.5]}
15... Bd7 {[%clk 0:02:10.7]} 16. g5 {[%clk 0:02:09.2]} 16... Bxh3 {[%clk
0:02:11.4]} 17. gxf6+ {[%clk 0:02:08.8]} 17... exf6 {[%clk 0:02:11.9]} 18. Re1
{[%clk 0:02:06.3]} 18... f5 {[%clk 0:02:03.4]} 19. Nc5 {[%clk 0:01:53.6]} 19...
g5 {[%clk 0:02:02.3]} 20. Nxb7 {[%clk 0:01:40.9]} 20... Qf6 {[%clk 0:01:58]} 21.
Be5 {[%clk 0:01:37.1]} 21... Nxe5 {[%clk 0:01:57.8]} 22. Nxe5 {[%clk 0:01:33.5]}
22... g4 {[%clk 0:01:42]} 23. Bf1 {[%clk 0:01:25]} 23... Qh4 {[%clk 0:01:34.6]}
24. Qe2 {[%clk 0:01:20.8]} 24... g3 {[%clk 0:01:27.3]} 25. fxg3 {[%clk
0:01:17.7]} 25... Qxg3+ {[%clk 0:01:22.1]} 26. Bg2 {[%clk 0:01:17.3]} 26... Rhg8
{[%clk 0:00:57.4]} 27. Qf3 {[%clk 0:00:44.7]} 27... Kf6 {[%clk 0:00:52.5]} 28.
Qxg3 {[%clk 0:00:44.1]} 28... Rxg3 {[%clk 0:00:52.4]} 29. Rc2 {[%clk 0:00:43.4]}
29... Rag8 {[%clk 0:00:51]} 30. Ree2 {[%clk 0:00:43.1]} 30... Nc3 {[%clk
0:00:20.6]} 31. Rxc3 {[%clk 0:00:36.5]} 31... Bxg2 {[%clk 0:00:20.8]} 32. Kf2
{[%clk 0:00:35.3]} 32... Be4 {[%clk 0:00:19.8]} 33. Ke1 {[%clk 0:00:26.2]} 33...
Rg1+ {[%clk 0:00:20.2]} 34. Kd2 {[%clk 0:00:26]} 34... Ra1 {[%clk 0:00:21.1]}
35. Nd3 {[%clk 0:00:22.8]} 35... Rgg1 {[%clk 0:00:19.5]} 36. Nbc5 {[%clk
0:00:17.4]} 36... Rgd1+ {[%clk 0:00:15]} 37. Kc2 {[%clk 0:00:17.4]} 37... Rac1+
{[%clk 0:00:10.1]} 38. Kb3 {[%clk 0:00:17.3]} 38... Rb1+ {[%clk 0:00:08.2]} 39.
Ka4 {[%clk 0:00:16.9]} 39... Bf3 {[%clk 0:00:03.6]} 40. Rf2 {[%clk 0:00:16.1]}
40... Be4 {[%clk 0:00:04.3]} 41. Nf4 {[%clk 0:00:15.5]} 41... Ke7 {[%clk
0:00:04]} 42. Ka5 {[%clk 0:00:15.5]} 42... Rdc1 {[%clk 0:00:03.6]} 43. Rxc1
{[%clk 0:00:13.5]} 43... Rxc1 {[%clk 0:00:04.5]} 44. Kxa6 {[%clk 0:00:14]} 44...
Ra1 {[%clk 0:00:05.4]} 45. b5 {[%clk 0:00:12.7]} 45... h5 {[%clk 0:00:06.3]} 46.
b6 {[%clk 0:00:12.7]} 46... Rxa3+ {[%clk 0:00:06.6]} 47. Kb5 {[%clk 0:00:13]}
47... Ra1 {[%clk 0:00:06.6]} 48. Rb2 {[%clk 0:00:12.7]} 48... Ra8 {[%clk
0:00:03.5]} 49. b7 {[%clk 0:00:12.6]} 49... Rb8 {[%clk 0:00:04.4]} 50. Kc6
{[%clk 0:00:13]} 1-0

[Event "Late-Titled-Tuesday-Blitz-April-30-2024"]
[Site "Chess.com"]
[Date "2024.04.30"]
[Round "5"]
[White "Navyblue1"]
[Black "PNEPaul"]
[Result "1/2-1/2"]
[WhiteElo "2230"]
[BlackElo "1955"]
[TimeControl "180+1"]
[EndTime "14:57:31 PDT"]
[Termination "Game drawn by repetition"]

1. d4 {[%clk 0:03:00.9]} 1... a6 {[%clk 0:02:36.5]} 2. e4 {[%clk 0:02:51]} 2...
d6 {[%clk 0:02:36.6]} 3. c4 {[%clk 0:02:48.9]} 3... g6 {[%clk 0:02:36.8]} 4. f4
{[%clk 0:02:45.5]} 4... h6 {[%clk 0:02:36.8]} 5. Nf3 {[%clk 0:02:45.1]} 5... Nd7
{[%clk 0:02:36.6]} 6. Nc3 {[%clk 0:02:43.7]} 6... Bg7 {[%clk 0:02:36.5]} 7. Be3
{[%clk 0:02:40.3]} 7... e6 {[%clk 0:02:36.5]} 8. Bd3 {[%clk 0:02:37]} 8... Ne7
{[%clk 0:02:36.4]} 9. O-O {[%clk 0:02:37.5]} 9... O-O {[%clk 0:02:36.1]} 10. Rc1
{[%clk 0:02:36.2]} 10... b6 {[%clk 0:02:32]} 11. b4 {[%clk 0:02:35.8]} 11... Bb7
{[%clk 0:02:32]} 12. Qb3 {[%clk 0:02:34.1]} 12... Rb8 {[%clk 0:02:27.3]} 13.
Rfe1 {[%clk 0:02:22.2]} 13... c5 {[%clk 0:02:26.6]} 14. d5 {[%clk 0:02:18]}
14... e5 {[%clk 0:02:20.8]} 15. b5 {[%clk 0:01:58.1]} 15... a5 {[%clk
0:02:19.8]} 16. a4 {[%clk 0:01:55.1]} 16... f5 {[%clk 0:02:15.5]} 17. fxe5
{[%clk 0:01:26.3]} 17... dxe5 {[%clk 0:02:11.4]} 18. Bf2 {[%clk 0:01:12.6]}
18... f4 {[%clk 0:02:04.9]} 19. Be2 {[%clk 0:00:32.1]} 19... g5 {[%clk
0:02:03.7]} 20. h3 {[%clk 0:00:31.8]} 20... Ng6 {[%clk 0:02:02.7]} 21. Rcd1
{[%clk 0:00:26.5]} 21... h5 {[%clk 0:02:01.7]} 22. Nh2 {[%clk 0:00:25.8]} 22...
Nf6 {[%clk 0:01:57]} 23. Qc2 {[%clk 0:00:20]} 23... Bc8 {[%clk 0:01:55.1]} 24.
Qd3 {[%clk 0:00:18.3]} 24... g4 {[%clk 0:01:54.8]} 25. hxg4 {[%clk 0:00:17.8]}
25... hxg4 {[%clk 0:01:54.5]} 26. g3 {[%clk 0:00:09.2]} 26... f3 {[%clk
0:01:47.9]} 27. Bf1 {[%clk 0:00:09.8]} 27... Kf7 {[%clk 0:01:31.9]} 28. d6
{[%clk 0:00:10]} 28... Be6 {[%clk 0:01:27]} 29. Nd5 {[%clk 0:00:09.5]} 29...
Nxd5 {[%clk 0:01:23]} 30. exd5 {[%clk 0:00:08.9]} 30... Bd7 {[%clk 0:01:22.3]}
31. Qe4 {[%clk 0:00:08.6]} 31... Qg5 {[%clk 0:01:13]} 32. Bd3 {[%clk 0:00:08.5]}
32... Qh5 {[%clk 0:00:45.7]} 33. Qxg6+ {[%clk 0:00:07.7]} 33... Qxg6 {[%clk
0:00:44.3]} 34. Bxg6+ {[%clk 0:00:08.6]} 34... Kxg6 {[%clk 0:00:43.9]} 35. Re3
{[%clk 0:00:08]} 35... Bf5 {[%clk 0:00:41.7]} 36. Rde1 {[%clk 0:00:07.4]} 36...
e4 {[%clk 0:00:40.8]} 37. Rb3 {[%clk 0:00:07.3]} 37... Be5 {[%clk 0:00:36]} 38.
Nxg4 {[%clk 0:00:07.1]} 38... Bxg4 {[%clk 0:00:35]} 39. Rxe4 {[%clk 0:00:07.8]}
39... Kf5 {[%clk 0:00:31.5]} 40. Rbe3 {[%clk 0:00:06.8]} 40... Bxd6 {[%clk
0:00:30.9]} 41. Re6 {[%clk 0:00:05.6]} 41... Rf6 {[%clk 0:00:30.4]} 42. Rxf6+
{[%clk 0:00:05.1]} 42... Kxf6 {[%clk 0:00:29.7]} 43. Re4 {[%clk 0:00:05.8]}
43... Bf5 {[%clk 0:00:20.7]} 44. Rh4 {[%clk 0:00:05.9]} 44... Be5 {[%clk
0:00:15.5]} 45. Rh6+ {[%clk 0:00:05.8]} 45... Bg6 {[%clk 0:00:15.4]} 46. Be3
{[%clk 0:00:06]} 46... Bd4 {[%clk 0:00:15.2]} 47. Kf2 {[%clk 0:00:05.3]} 47...
Bxe3+ {[%clk 0:00:14.7]} 48. Kxe3 {[%clk 0:00:06.2]} 48... Kg5 {[%clk
0:00:14.5]} 49. Rh4 {[%clk 0:00:05.7]} 49... Re8+ {[%clk 0:00:14.1]} 50. Kxf3
{[%clk 0:00:06.2]} 50... Rf8+ {[%clk 0:00:13.1]} 51. Ke3 {[%clk 0:00:04.8]}
51... Re8+ {[%clk 0:00:12.5]} 52. Kf3 {[%clk 0:00:04.7]} 52... Rf8+ {[%clk
0:00:12.4]} 53. Ke3 {[%clk 0:00:04.3]} 53... Re8+ {[%clk 0:00:12.6]} 54. Kf3
{[%clk 0:00:04.7]} 1/2-1/2